[Event "Titled Tuesday Blitz December 13 Late 2022"]
[White "Thomforde-Toates, Noah"]
[Black "Lacasa Diaz, Jose Antonio"]
[WhiteFideId "30951992"]
[BlackFideId "2203375"]
[WhiteElo "2592"]
[BlackElo "2338"]
[Result "1-0"]
[Round "03"]
[TimeControl "180+1"]
[Date "2022.12.14"]
[WhiteClock "0:01:34"]
[BlackClock "0:01:14"]

1. d4 {[%clk 0:03:00]}  d5 {[%clk 0:02:56]} 2. Nc3 {[%clk 0:03:00]}  e6 {[%clk 0:02:51]} 3. Bf4 {[%clk 0:03:00]}  Bd6 {[%clk 0:02:50]} 4. e3 {[%clk 0:03:00]}  Bd7 {[%clk 0:02:44]} 5. Nf3 {[%clk 0:02:59]}  Bxf4 {[%clk 0:02:41]} 6. exf4 {[%clk 0:02:59]}  Ne7 {[%clk 0:02:40]} 7. Bd3 {[%clk 0:02:58]}  a6 {[%clk 0:02:23]} 8. O-O {[%clk 0:02:54]}  O-O {[%clk 0:02:12]} 9. Bxh7+ {[%clk 0:02:07]}  Kxh7 {[%clk 0:02:02]} 10. Ng5+ {[%clk 0:02:07]}  Kg6 {[%clk 0:01:45]} 11. Qg4 {[%clk 0:01:38]}  e5 {[%clk 0:01:39]} 12. Ne6+ {[%clk 0:01:34]}  Kh7 {[%clk 0:01:14]} 13. Qxg7# {[%clk 0:01:34]} 1-0


[Site "https://www.chess.com"]

[Event "Titled Tuesday Blitz December 13 Late 2022"]
[White "Walentukiewicz, Michal"]
[Black "Hoffmann, Asa"]
[WhiteFideId "1126903"]
[BlackFideId "2001470"]
[WhiteElo "2028"]
[BlackElo "2117"]
[Result "1-0"]
[Round "03"]
[TimeControl "180+1"]
[Date "2022.12.14"]
[WhiteClock "0:02:39"]
[BlackClock "0:00:59"]

1. g3 {[%clk 0:03:00]}  d6 {[%clk 0:02:58]} 2. Bg2 {[%clk 0:03:00]}  e5 {[%clk 0:02:57]} 3. c4 {[%clk 0:03:00]}  c6 {[%clk 0:02:57]} 4. d3 {[%clk 0:03:00]}  Nf6 {[%clk 0:02:56]} 5. Nf3 {[%clk 0:03:01]}  Be7 {[%clk 0:02:55]} 6. O-O {[%clk 0:03:01]}  h6 {[%clk 0:02:55]} 7. c5 {[%clk 0:03:01]}  Be6 {[%clk 0:02:53]} 8. cxd6 {[%clk 0:03:01]}  Bxd6 {[%clk 0:02:53]} 9. Nc3 {[%clk 0:03:01]}  Qd7 {[%clk 0:02:47]} 10. d4 {[%clk 0:03:02]}  exd4 {[%clk 0:02:41]} 11. Nxd4 {[%clk 0:03:01]}  Bh3 {[%clk 0:02:24]} 12. Qb3 {[%clk 0:02:57]}  Bxg2 {[%clk 0:02:18]} 13. Kxg2 {[%clk 0:02:55]}  Na6 {[%clk 0:02:13]} 14. Rd1 {[%clk 0:02:54]}  O-O {[%clk 0:01:53]} 15. e4 {[%clk 0:02:51]}  Rfe8 {[%clk 0:01:51]} 16. Nf5 {[%clk 0:02:50]}  Nc5 {[%clk 0:01:50]} 17. Qc2 {[%clk 0:02:47]}  Re6 {[%clk 0:01:43]} 18. Bf4 {[%clk 0:02:46]}  Ne8 {[%clk 0:01:18]} 19. e5 {[%clk 0:02:44]}  Rg6 {[%clk 0:01:08]} 20. Nxd6 {[%clk 0:02:40]}  Nxd6 {[%clk 0:01:05]} 21. Rxd6 {[%clk 0:02:40]}  Qf5 {[%clk 0:00:59]} 22. Qxf5 {[%clk 0:02:39]} 1-0


[Site "https://www.chess.com"]

[Event "Titled Tuesday Blitz December 13 Late 2022"]
[White "Zhu, Jiner"]
[Black "Vedder, Richard"]
[WhiteFideId "8608059"]
[BlackFideId "1004166"]
[WhiteElo "2642"]
[BlackElo "2412"]
[Result "0-1"]
[Round "03"]
[TimeControl "180+1"]
[Date "2022.12.14"]
[WhiteClock "0:00:06"]
[BlackClock "0:00:08"]

1. e4 {[%clk 0:03:00]}  e5 {[%clk 0:02:59]} 2. Nf3 {[%clk 0:02:59]}  Nc6 {[%clk 0:02:59]} 3. Bc4 {[%clk 0:02:59]}  Nf6 {[%clk 0:02:58]} 4. Ng5 {[%clk 0:02:57]}  d5 {[%clk 0:02:57]} 5. exd5 {[%clk 0:02:57]}  Na5 {[%clk 0:02:58]} 6. Bb5+ {[%clk 0:02:56]}  c6 {[%clk 0:02:59]} 7. dxc6 {[%clk 0:02:57]}  bxc6 {[%clk 0:03:00]} 8. Qf3 {[%clk 0:02:57]}  h6 {[%clk 0:02:59]} 9. Ne4 {[%clk 0:02:54]}  Nd5 {[%clk 0:02:59]} 10. Be2 {[%clk 0:02:41]}  Be7 {[%clk 0:02:44]} 11. O-O {[%clk 0:02:22]}  O-O {[%clk 0:02:44]} 12. d3 {[%clk 0:02:22]}  f5 {[%clk 0:02:40]} 13. Ng3 {[%clk 0:02:22]}  Be6 {[%clk 0:02:37]} 14. Nc3 {[%clk 0:02:18]}  Rb8 {[%clk 0:02:28]} 15. Re1 {[%clk 0:02:04]}  Bd6 {[%clk 0:02:20]} 16. Bf1 {[%clk 0:02:00]}  Qf6 {[%clk 0:01:50]} 17. a3 {[%clk 0:01:52]}  Nxc3 {[%clk 0:01:43]} 18. bxc3 {[%clk 0:01:52]}  Bd5 {[%clk 0:01:44]} 19. Qd1 {[%clk 0:01:08]}  c5 {[%clk 0:01:37]} 20. Bd2 {[%clk 0:00:57]}  Ba8 {[%clk 0:01:23]} 21. Qe2 {[%clk 0:00:52]}  Nc6 {[%clk 0:01:19]} 22. f3 {[%clk 0:00:51]}  Ne7 {[%clk 0:01:13]} 23. Qf2 {[%clk 0:00:49]}  Ng6 {[%clk 0:01:08]} 24. Kh1 {[%clk 0:00:47]}  Qh4 {[%clk 0:00:53]} 25. Kg1 {[%clk 0:00:28]}  Rb2 {[%clk 0:00:50]} 26. Rac1 {[%clk 0:00:27]}  Qa4 {[%clk 0:00:30]} 27. d4 {[%clk 0:00:17]}  exd4 {[%clk 0:00:19]} 28. cxd4 {[%clk 0:00:17]}  Rxc2 {[%clk 0:00:17]} 29. Bd3 {[%clk 0:00:16]}  Rxc1 {[%clk 0:00:15]} 30. Rxc1 {[%clk 0:00:17]}  cxd4 {[%clk 0:00:14]} 31. Nxf5 {[%clk 0:00:15]}  Nf4 {[%clk 0:00:12]} 32. Bc4+ {[%clk 0:00:14]}  Kh7 {[%clk 0:00:10]} 33. Nxd6 {[%clk 0:00:14]}  Qxa3 {[%clk 0:00:09]} 34. Nf7 {[%clk 0:00:13]}  Bd5 {[%clk 0:00:02]} 35. Bxd5 {[%clk 0:00:13]}  Nxd5 {[%clk 0:00:03]} 36. Ne5 {[%clk 0:00:12]}  Ne3 {[%clk 0:00:02]} 37. Re1 {[%clk 0:00:11]}  Nc2 {[%clk 0:00:02]} 38. Rd1 {[%clk 0:00:10]}  Ne3 {[%clk 0:00:02]} 39. Re1 {[%clk 0:00:07]}  Re8 {[%clk 0:00:02]} 40. Bxe3 {[%clk 0:00:07]}  dxe3 {[%clk 0:00:03]} 41. Qxe3 {[%clk 0:00:07]}  Qa5 {[%clk 0:00:02]} 42. Qe4+ {[%clk 0:00:06]}  Kg8 {[%clk 0:00:02]} 43. Qc4+ {[%clk 0:00:05]}  Kh7 {[%clk 0:00:02]} 44. Qe4+ {[%clk 0:00:06]}  Kg8 {[%clk 0:00:03]} 45. h4 {[%clk 0:00:06]}  Qb6+ {[%clk 0:00:02]} 46. Kh1 {[%clk 0:00:06]}  a5 {[%clk 0:00:03]} 47. Re2 {[%clk 0:00:06]}  a4 {[%clk 0:00:03]} 48. Qxa4 {[%clk 0:00:05]}  Qb1+ {[%clk 0:00:03]} 49. Kh2 {[%clk 0:00:05]}  Qf5 {[%clk 0:00:04]} 50. Qe4 {[%clk 0:00:05]}  Qf6 {[%clk 0:00:03]} 51. h5 {[%clk 0:00:04]}  Qe6 {[%clk 0:00:01]} 52. Re3 {[%clk 0:00:02]}  Qf6 {[%clk 0:00:02]} 53. Qc4+ {[%clk 0:00:02]}  Kh7 {[%clk 0:00:01]} 54. Qe4+ {[%clk 0:00:02]}  Kg8 {[%clk 0:00:02]} 55. Kg3 {[%clk 0:00:03]}  Qg5+ {[%clk 0:00:02]} 56. Kf2 {[%clk 0:00:01]}  Qxh5 {[%clk 0:00:02]} 57. g3 {[%clk 0:00:02]}  Qh2+ {[%clk 0:00:01]} 58. Kf1 {[%clk 0:00:02]}  Qh1+ {[%clk 0:00:02]} 59. Ke2 {[%clk 0:00:02]}  Qg2+ {[%clk 0:00:02]} 60. Kd3 {[%clk 0:00:03]}  Qxg3 {[%clk 0:00:03]} 61. Qd5+ {[%clk 0:00:03]}  Kh7 {[%clk 0:00:03]} 62. Nc4 {[%clk 0:00:03]}  Qg6+ {[%clk 0:00:03]} 63. Re4 {[%clk 0:00:03]}  Rxe4 {[%clk 0:00:03]} 64. Qxe4 {[%clk 0:00:04]}  h5 {[%clk 0:00:03]} 65. Qxg6+ {[%clk 0:00:04]}  Kxg6 {[%clk 0:00:04]} 66. Ke3 {[%clk 0:00:04]}  h4 {[%clk 0:00:04]} 67. Nd2 {[%clk 0:00:04]}  Kg5 {[%clk 0:00:05]} 68. Nf1 {[%clk 0:00:04]}  h3 {[%clk 0:00:05]} 69. Kf2 {[%clk 0:00:05]}  Kh4 {[%clk 0:00:06]} 70. Nh2 {[%clk 0:00:05]}  g5 {[%clk 0:00:07]} 71. Ng4 {[%clk 0:00:05]}  Kh5 {[%clk 0:00:07]} 72. Kg3 {[%clk 0:00:05]}  h2 {[%clk 0:00:08]} 73. Kh3 {[%clk 0:00:06]}  h1=Q+ {[%clk 0:00:08]} 0-1


[Site "https://www.chess.com"]

[Event "Titled Tuesday Blitz December 13 Late 2022"]
[White "Andrews, Todd"]
[Black "Arkell, Keith C"]
[WhiteFideId "2012456"]
[BlackFideId "400270"]
[WhiteElo "2359"]
[BlackElo "2356"]
[Result "1/2-1/2"]
[Round "04"]
[TimeControl "180+1"]
[Date "2022.12.14"]
[WhiteClock "0:00:03"]
[BlackClock "0:00:15"]

1. e4 {[%clk 0:03:00]}  c6 {[%clk 0:02:58]} 2. d4 {[%clk 0:02:57]}  d5 {[%clk 0:02:58]} 3. Nc3 {[%clk 0:02:54]}  dxe4 {[%clk 0:02:58]} 4. Nxe4 {[%clk 0:02:54]}  Nd7 {[%clk 0:02:58]} 5. c3 {[%clk 0:02:51]}  Ngf6 {[%clk 0:02:58]} 6. Ng3 {[%clk 0:02:50]}  c5 {[%clk 0:02:58]} 7. dxc5 {[%clk 0:02:48]}  e6 {[%clk 0:02:58]} 8. Nf3 {[%clk 0:02:43]}  Bxc5 {[%clk 0:02:57]} 9. Bd3 {[%clk 0:02:43]}  O-O {[%clk 0:02:55]} 10. O-O {[%clk 0:02:43]}  a6 {[%clk 0:02:54]} 11. Qe2 {[%clk 0:02:39]}  b5 {[%clk 0:02:54]} 12. Bg5 {[%clk 0:02:38]}  Bb7 {[%clk 0:02:54]} 13. Rad1 {[%clk 0:02:39]}  Qc7 {[%clk 0:02:54]} 14. Ne4 {[%clk 0:02:26]}  Nxe4 {[%clk 0:02:53]} 15. Bxe4 {[%clk 0:02:27]}  Bxe4 {[%clk 0:02:53]} 16. Qxe4 {[%clk 0:02:27]}  h6 {[%clk 0:02:50]} 17. Bf4 {[%clk 0:02:23]}  Qa7 {[%clk 0:02:45]} 18. Qc6 {[%clk 0:02:17]}  Nf6 {[%clk 0:02:43]} 19. Ne5 {[%clk 0:02:09]}  Rac8 {[%clk 0:02:43]} 20. Qf3 {[%clk 0:02:09]}  Nd5 {[%clk 0:02:43]} 21. Bc1 {[%clk 0:02:00]}  Qe7 {[%clk 0:02:38]} 22. Qg4 {[%clk 0:01:57]}  Kh7 {[%clk 0:02:30]} 23. h4 {[%clk 0:01:51]}  Rfd8 {[%clk 0:02:23]} 24. g3 {[%clk 0:01:35]}  Qf6 {[%clk 0:02:06]} 25. Qe4+ {[%clk 0:01:34]}  Kg8 {[%clk 0:01:58]} 26. Kg2 {[%clk 0:01:31]}  h5 {[%clk 0:01:58]} 27. Bg5 {[%clk 0:01:29]}  Qf5 {[%clk 0:01:48]} 28. Qxf5 {[%clk 0:01:29]}  exf5 {[%clk 0:01:48]} 29. Bxd8 {[%clk 0:01:29]}  Rxd8 {[%clk 0:01:49]} 30. b4 {[%clk 0:01:16]}  Bb6 {[%clk 0:01:46]} 31. Nc6 {[%clk 0:01:14]}  Rc8 {[%clk 0:01:46]} 32. Rxd5 {[%clk 0:01:12]}  Rxc6 {[%clk 0:01:46]} 33. Rxf5 {[%clk 0:01:09]}  Rxc3 {[%clk 0:01:46]} 34. Rxh5 {[%clk 0:01:04]}  Rc2 {[%clk 0:01:46]} 35. a3 {[%clk 0:01:01]}  Ra2 {[%clk 0:01:45]} 36. Rc1 {[%clk 0:00:59]}  g6 {[%clk 0:01:44]} 37. Rd5 {[%clk 0:00:54]}  Bxf2 {[%clk 0:01:34]} 38. Rc8+ {[%clk 0:00:53]}  Kg7 {[%clk 0:01:34]} 39. Rd7 {[%clk 0:00:45]}  Be1+ {[%clk 0:01:29]} 40. Kf3 {[%clk 0:00:36]}  Rxa3+ {[%clk 0:01:29]} 41. Ke4 {[%clk 0:00:35]}  Rxg3 {[%clk 0:01:09]} 42. Rcc7 {[%clk 0:00:30]}  Rg4+ {[%clk 0:00:55]} 43. Kf3 {[%clk 0:00:23]}  Rxh4 {[%clk 0:00:53]} 44. Rxf7+ {[%clk 0:00:23]}  Kh6 {[%clk 0:00:53]} 45. Rh7+ {[%clk 0:00:22]}  Kg5 {[%clk 0:00:53]} 46. Rc5+ {[%clk 0:00:22]}  Kf6 {[%clk 0:00:52]} 47. Rc6+ {[%clk 0:00:20]}  Kg5 {[%clk 0:00:48]} 48. Rxh4 {[%clk 0:00:20]}  Kxh4 {[%clk 0:00:46]} 49. Rxa6 {[%clk 0:00:18]}  Bxb4 {[%clk 0:00:46]} 50. Rxg6 {[%clk 0:00:19]}  Bc3 {[%clk 0:00:43]} 51. Kf4 {[%clk 0:00:17]}  Bd2+ {[%clk 0:00:35]} 52. Ke4 {[%clk 0:00:15]}  b4 {[%clk 0:00:35]} 53. Kd3 {[%clk 0:00:16]}  Bc3 {[%clk 0:00:31]} 54. Kc4 {[%clk 0:00:16]}  Kh5 {[%clk 0:00:31]} 55. Rg8 {[%clk 0:00:16]}  Kh4 {[%clk 0:00:30]} 56. Kd5 {[%clk 0:00:15]}  Kh3 {[%clk 0:00:30]} 57. Ke4 {[%clk 0:00:15]}  Kh2 {[%clk 0:00:27]} 58. Kf3 {[%clk 0:00:15]}  Kh1 {[%clk 0:00:22]} 59. Rg2 {[%clk 0:00:14]}  Be5 {[%clk 0:00:16]} 60. Re2 {[%clk 0:00:14]}  Bd6 {[%clk 0:00:15]} 61. Rd2 {[%clk 0:00:14]}  Bc7 {[%clk 0:00:15]} 62. Rb2 {[%clk 0:00:13]}  Bd6 {[%clk 0:00:16]} 63. Kg4 {[%clk 0:00:13]}  Kg1 {[%clk 0:00:14]} 64. Kf3 {[%clk 0:00:13]}  Kh1 {[%clk 0:00:14]} 65. Rc2 {[%clk 0:00:13]}  Be5 {[%clk 0:00:14]} 66. Re2 {[%clk 0:00:11]}  Bd6 {[%clk 0:00:14]} 67. Rd2 {[%clk 0:00:11]}  Bc7 {[%clk 0:00:14]} 68. Rd4 {[%clk 0:00:11]}  Be5 {[%clk 0:00:14]} 69. Rxb4 {[%clk 0:00:11]}  Bd6 {[%clk 0:00:14]} 70. Rg4 {[%clk 0:00:09]}  Be5 {[%clk 0:00:14]} 71. Rg2 {[%clk 0:00:10]}  Bd6 {[%clk 0:00:14]} 72. Rd2 {[%clk 0:00:10]}  Bc7 {[%clk 0:00:14]} 73. Rd1+ {[%clk 0:00:10]}  Kh2 {[%clk 0:00:13]} 74. Rc1 {[%clk 0:00:11]}  Bd6 {[%clk 0:00:13]} 75. Rc6 {[%clk 0:00:11]}  Be5 {[%clk 0:00:14]} 76. Ke4 {[%clk 0:00:11]}  Bb8 {[%clk 0:00:13]} 77. Rg6 {[%clk 0:00:10]}  Kh1 {[%clk 0:00:12]} 78. Kf3 {[%clk 0:00:11]}  Be5 {[%clk 0:00:12]} 79. Kf2 {[%clk 0:00:11]}  Bd4+ {[%clk 0:00:11]} 80. Kf3 {[%clk 0:00:11]}  Bc5 {[%clk 0:00:11]} 81. Rg5 {[%clk 0:00:11]}  Bd4 {[%clk 0:00:11]} 82. Rg4 {[%clk 0:00:12]}  Bc5 {[%clk 0:00:12]} 83. Rh4+ {[%clk 0:00:10]}  Kg1 {[%clk 0:00:12]} 84. Rh5 {[%clk 0:00:10]}  Bb6 {[%clk 0:00:12]} 85. Rb5 {[%clk 0:00:10]}  Bc7 {[%clk 0:00:12]} 86. Rb7 {[%clk 0:00:10]}  Bd6 {[%clk 0:00:12]} 87. Rd7 {[%clk 0:00:10]}  Be5 {[%clk 0:00:13]} 88. Rd1+ {[%clk 0:00:10]}  Kh2 {[%clk 0:00:12]} 89. Rc1 {[%clk 0:00:11]}  Bd6 {[%clk 0:00:12]} 90. Rc2+ {[%clk 0:00:10]}  Kh1 {[%clk 0:00:13]} 91. Rc6 {[%clk 0:00:10]}  Be5 {[%clk 0:00:13]} 92. Rh6+ {[%clk 0:00:09]}  Kg1 {[%clk 0:00:13]} 93. Rh5 {[%clk 0:00:08]}  Bd6 {[%clk 0:00:14]} 94. Rd5 {[%clk 0:00:06]}  Bc7 {[%clk 0:00:14]} 95. Rd2 {[%clk 0:00:06]}  Be5 {[%clk 0:00:14]} 96. Rg2+ {[%clk 0:00:07]}  Kh1 {[%clk 0:00:14]} 97. Kf2 {[%clk 0:00:07]}  Bd4+ {[%clk 0:00:14]} 98. Kf1 {[%clk 0:00:07]}  Bc5 {[%clk 0:00:14]} 99. Rg5 {[%clk 0:00:06]}  Bd6 {[%clk 0:00:15]} 100. Rh5+ {[%clk 0:00:06]}  Bh2 {[%clk 0:00:15]} 101. Rg5 {[%clk 0:00:05]}  Bf4 {[%clk 0:00:15]} 102. Rg4 {[%clk 0:00:05]}  Be5 {[%clk 0:00:15]} 103. Kf2 {[%clk 0:00:05]}  Bd6 {[%clk 0:00:14]} 104. Rh4+ {[%clk 0:00:05]}  Bh2 {[%clk 0:00:14]} 105. Kf3 {[%clk 0:00:05]}  Kg1 {[%clk 0:00:13]} 106. Rg4+ {[%clk 0:00:04]}  Kh1 {[%clk 0:00:14]} 107. Rh4 {[%clk 0:00:01]}  Kg1 {[%clk 0:00:14]} 108. Rh3 {[%clk 0:00:01]}  Kh1 {[%clk 0:00:14]} 109. Rh5 {[%clk 0:00:01]}  Kg1 {[%clk 0:00:14]} 110. Rb5 {[%clk 0:00:02]}  Kh1 {[%clk 0:00:14]} 111. Rb1+ {[%clk 0:00:03]}  Bg1 {[%clk 0:00:15]} 112. Ke2 {[%clk 0:00:02]}  Kg2 {[%clk 0:00:15]} 113. Rb2 {[%clk 0:00:02]}  Kh1 {[%clk 0:00:15]} 114. Rc2 {[%clk 0:00:03]}  Kg2 {[%clk 0:00:15]} 115. Ke1+ {[%clk 0:00:03]}  Kh1 {[%clk 0:00:15]} 116. Kf1 {[%clk 0:00:04]}  Bh2 {[%clk 0:00:15]} 117. Rg2 {[%clk 0:00:03]}  Be5 {[%clk 0:00:15]} 118. Rg5 {[%clk 0:00:03]}  Bh2 {[%clk 0:00:15]} 119. Kf2 {[%clk 0:00:03]} 1/2-1/2


[Site "https://www.chess.com"]

[Event "Titled Tuesday Blitz December 13 Late 2022"]
[White "Ankerst, Mihael"]
[Black "Mitrovic, Darko R"]
[WhiteFideId "14602369"]
[BlackFideId "927023"]
[WhiteElo "2336"]
[BlackElo "2150"]
[Result "1-0"]
[Round "04"]
[TimeControl "180+1"]
[Date "2022.12.14"]
[WhiteClock "0:02:15"]
[BlackClock "0:00:04"]

1. e4 {[%clk 0:02:59]}  e6 {[%clk 0:02:57]} 2. d4 {[%clk 0:02:59]}  d5 {[%clk 0:02:58]} 3. Nc3 {[%clk 0:03:00]}  Bb4 {[%clk 0:02:57]} 4. e5 {[%clk 0:03:01]}  c5 {[%clk 0:02:57]} 5. dxc5 {[%clk 0:03:01]}  Bxc3+ {[%clk 0:02:54]} 6. bxc3 {[%clk 0:03:00]}  Ne7 {[%clk 0:02:44]} 7. Nf3 {[%clk 0:02:59]}  Nd7 {[%clk 0:02:37]} 8. Bd3 {[%clk 0:03:00]}  Nxc5 {[%clk 0:02:35]} 9. O-O {[%clk 0:02:59]}  Nxd3 {[%clk 0:02:28]} 10. cxd3 {[%clk 0:03:00]}  h6 {[%clk 0:02:20]} 11. Re1 {[%clk 0:03:00]}  Bd7 {[%clk 0:02:18]} 12. Nd4 {[%clk 0:02:59]}  Rc8 {[%clk 0:02:11]} 13. Bd2 {[%clk 0:02:58]}  b5 {[%clk 0:01:59]} 14. Rb1 {[%clk 0:02:56]}  a6 {[%clk 0:01:59]} 15. Qg4 {[%clk 0:02:56]}  g6 {[%clk 0:01:50]} 16. h4 {[%clk 0:02:54]}  Nf5 {[%clk 0:01:45]} 17. Nxf5 {[%clk 0:02:53]}  exf5 {[%clk 0:01:44]} 18. Qb4 {[%clk 0:02:50]}  Be6 {[%clk 0:01:41]} 19. a4 {[%clk 0:02:49]}  Qe7 {[%clk 0:01:16]} 20. axb5 {[%clk 0:02:48]}  Qxb4 {[%clk 0:01:13]} 21. Rxb4 {[%clk 0:02:47]}  axb5 {[%clk 0:01:12]} 22. Rxb5 {[%clk 0:02:48]}  Kf8 {[%clk 0:00:49]} 23. Ra1 {[%clk 0:02:47]}  Kg7 {[%clk 0:00:49]} 24. Ra7 {[%clk 0:02:47]}  Rb8 {[%clk 0:00:33]} 25. Rbb7 {[%clk 0:02:24]}  Rxb7 {[%clk 0:00:32]} 26. Rxb7 {[%clk 0:02:24]}  Ra8 {[%clk 0:00:30]} 27. Be3 {[%clk 0:02:22]}  Ra1+ {[%clk 0:00:23]} 28. Kh2 {[%clk 0:02:22]}  Rd1 {[%clk 0:00:22]} 29. Bc5 {[%clk 0:02:20]}  Rxd3 {[%clk 0:00:16]} 30. Be7 {[%clk 0:02:20]}  Rxc3 {[%clk 0:00:13]} 31. Bf6+ {[%clk 0:02:19]}  Kh7 {[%clk 0:00:13]} 32. Rb8 {[%clk 0:02:15]}  Rc8 {[%clk 0:00:13]} 33. Rb4 {[%clk 0:02:16]}  Rc4 {[%clk 0:00:12]} 34. Rb8 {[%clk 0:02:16]}  Rc8 {[%clk 0:00:12]} 35. Rb7 {[%clk 0:02:15]}  g5 {[%clk 0:00:08]} 36. h5 {[%clk 0:02:15]}  d4 {[%clk 0:00:05]} 37. Kg3 {[%clk 0:02:15]}  d3 {[%clk 0:00:05]} 38. Kf3 {[%clk 0:02:15]}  d2 {[%clk 0:00:04]} 39. Ke2 {[%clk 0:02:15]} 1-0


[Site "https://www.chess.com"]

[Event "Titled Tuesday Blitz December 13 Late 2022"]
[White "Arnold, Ken"]
[Black "Campelo, Leandro Fabricio"]
[WhiteFideId "2056836"]
[BlackFideId "2103346"]
[WhiteElo "2365"]
[BlackElo "2070"]
[Result "1-0"]
[Round "04"]
[TimeControl "180+1"]
[Date "2022.12.14"]
[WhiteClock "0:02:39"]
[BlackClock "0:01:54"]

1. d4 {[%clk 0:03:00]}  Nf6 {[%clk 0:02:59]} 2. c4 {[%clk 0:02:59]}  g6 {[%clk 0:02:59]} 3. Nf3 {[%clk 0:03:00]}  Bg7 {[%clk 0:02:58]} 4. Nc3 {[%clk 0:03:00]}  d6 {[%clk 0:02:59]} 5. e4 {[%clk 0:03:00]}  O-O {[%clk 0:03:00]} 6. Be2 {[%clk 0:03:00]}  e5 {[%clk 0:03:00]} 7. Bg5 {[%clk 0:02:59]}  h6 {[%clk 0:02:56]} 8. dxe5 {[%clk 0:02:57]}  dxe5 {[%clk 0:02:53]} 9. Qxd8 {[%clk 0:02:55]}  Rxd8 {[%clk 0:02:52]} 10. Bxf6 {[%clk 0:02:52]}  Bxf6 {[%clk 0:02:47]} 11. Nd5 {[%clk 0:02:52]}  Rd6 {[%clk 0:02:02]} 12. Nxc7 {[%clk 0:02:49]}  Nc6 {[%clk 0:02:02]} 13. Nxa8 {[%clk 0:02:48]}  Bd8 {[%clk 0:02:02]} 14. O-O {[%clk 0:02:44]}  b6 {[%clk 0:02:02]} 15. Rad1 {[%clk 0:02:43]}  Rxd1 {[%clk 0:01:55]} 16. Rxd1 {[%clk 0:02:42]}  Bb7 {[%clk 0:01:55]} 17. Rxd8+ {[%clk 0:02:41]}  Nxd8 {[%clk 0:01:55]} 18. Nc7 {[%clk 0:02:41]}  Bxe4 {[%clk 0:01:54]} 19. Nxe5 {[%clk 0:02:39]} 1-0


[Site "https://www.chess.com"]

[Event "Titled Tuesday Blitz December 13 Late 2022"]
[White "Bulgurlu, Okan"]
[Black "Gasparyan, David"]
[WhiteFideId "6352316"]
[BlackFideId "13311980"]
[WhiteElo "2224"]
[BlackElo "2409"]
[Result "0-1"]
[Round "04"]
[TimeControl "180+1"]
[Date "2022.12.14"]
[WhiteClock "0:00:10"]
[BlackClock "0:00:22"]

1. e4 {[%clk 0:02:59]}  c5 {[%clk 0:02:59]} 2. Nc3 {[%clk 0:02:58]}  Nc6 {[%clk 0:02:59]} 3. g3 {[%clk 0:02:59]}  g6 {[%clk 0:02:59]} 4. Bg2 {[%clk 0:03:00]}  Bg7 {[%clk 0:02:59]} 5. Nge2 {[%clk 0:03:01]}  Nf6 {[%clk 0:03:00]} 6. O-O {[%clk 0:03:01]}  O-O {[%clk 0:03:00]} 7. d3 {[%clk 0:03:02]}  d6 {[%clk 0:03:01]} 8. Be3 {[%clk 0:03:02]}  Ng4 {[%clk 0:02:59]} 9. Qd2 {[%clk 0:03:01]}  Nxe3 {[%clk 0:03:00]} 10. fxe3 {[%clk 0:03:02]}  Rb8 {[%clk 0:02:56]} 11. Rae1 {[%clk 0:02:58]}  Bd7 {[%clk 0:02:56]} 12. d4 {[%clk 0:02:54]}  b5 {[%clk 0:02:56]} 13. Rd1 {[%clk 0:02:40]}  cxd4 {[%clk 0:02:37]} 14. exd4 {[%clk 0:02:40]}  b4 {[%clk 0:02:31]} 15. Nd5 {[%clk 0:02:36]}  Bg4 {[%clk 0:02:29]} 16. c3 {[%clk 0:02:27]}  bxc3 {[%clk 0:02:30]} 17. bxc3 {[%clk 0:02:28]}  e6 {[%clk 0:02:30]} 18. Ne3 {[%clk 0:02:25]}  Bxe2 {[%clk 0:02:14]} 19. Qxe2 {[%clk 0:02:23]}  Qa5 {[%clk 0:02:13]} 20. d5 {[%clk 0:02:19]}  exd5 {[%clk 0:02:03]} 21. Nxd5 {[%clk 0:02:15]}  Ne5 {[%clk 0:01:58]} 22. Rc1 {[%clk 0:01:46]}  Kh8 {[%clk 0:01:52]} 23. c4 {[%clk 0:01:44]}  Qa3 {[%clk 0:01:40]} 24. Rc2 {[%clk 0:01:31]}  h5 {[%clk 0:01:24]} 25. h3 {[%clk 0:01:29]}  Qxg3 {[%clk 0:01:22]} 26. Qf2 {[%clk 0:01:15]}  Qg5 {[%clk 0:01:14]} 27. Qxa7 {[%clk 0:01:12]}  Nc6 {[%clk 0:01:10]} 28. Qc7 {[%clk 0:01:04]}  Rbc8 {[%clk 0:00:59]} 29. Qd7 {[%clk 0:00:48]}  Ne5 {[%clk 0:00:51]} 30. Qe7 {[%clk 0:00:45]}  Qxe7 {[%clk 0:00:39]} 31. Nxe7 {[%clk 0:00:45]}  Rxc4 {[%clk 0:00:40]} 32. Rxc4 {[%clk 0:00:44]}  Nxc4 {[%clk 0:00:40]} 33. Rc1 {[%clk 0:00:43]}  Nb2 {[%clk 0:00:34]} 34. Rc6 {[%clk 0:00:39]}  Be5 {[%clk 0:00:32]} 35. Nd5 {[%clk 0:00:38]}  Ra8 {[%clk 0:00:29]} 36. Nb4 {[%clk 0:00:29]}  Ra4 {[%clk 0:00:28]} 37. Rc8+ {[%clk 0:00:21]}  Kg7 {[%clk 0:00:28]} 38. Rb8 {[%clk 0:00:21]}  Bc3 {[%clk 0:00:25]} 39. Nd5 {[%clk 0:00:20]}  Bd4+ {[%clk 0:00:25]} 40. Kf1 {[%clk 0:00:19]}  Rxa2 {[%clk 0:00:25]} 41. Rb7 {[%clk 0:00:19]}  Nd3 {[%clk 0:00:24]} 42. Rb1 {[%clk 0:00:10]}  Rf2+ {[%clk 0:00:23]} 43. Kg1 {[%clk 0:00:10]}  Rb2+ {[%clk 0:00:24]} 44. Kh2 {[%clk 0:00:10]}  Be5+ {[%clk 0:00:22]} 0-1


[Site "https://www.chess.com"]